fUSD/lending_fUSD_20250616
["ID","MTS","AMOUNT","RATE_DAILY","PERIOD"]
[366071942,1750049453115,-626.65,0.00016438,2]
[366071943,1750049453124,-3612.85,0.00016438,2]
[366071944,1750049453133,-490.0,0.00016438,2]
[366071945,1750049453143,-150.0,0.00016438,2]
[366071946,1750049453152,-656.23,0.00016438,2]
[366071947,1750049453161,-495.81400295,0.00016438,2]
[366071948,1750049453171,-155.90329599,0.00016438,2]
[366071949,1750049453181,-2220.63,0.00016438,2]
[366071950,1750049453190,-490.0,0.00016438,2]
[366071951,1750049453199,-490.0,0.00016438,2]
[366071952,1750049453209,-986.31,0.00016438,2]
[366071953,1750049453219,-490.0,0.00016438,2]
[366071954,1750049453229,-1055.28,0.00016438,2]
[366071955,1750049453238,-490.0,0.00016438,2]
[366071956,1750049453247,-3595.05,0.00016438,2]
[366071957,1750049453256,-490.0,0.00016438,2]
[366071958,1750049453265,-490.0,0.00016438,2]
[366071959,1750049453275,-490.0,0.00016438,2]
[366071960,1750049453284,-2809.99,0.00016438,2]
[366071961,1750049453294,-500.06585854,0.00016438,2]
[366071962,1750049453303,-1298.36,0.00016438,2]
[366071963,1750049453313,-490.0,0.00016438,2]
[366071964,1750049453323,-25833.23,0.00016438,2]
[366071965,1750049453332,-1469.24,0.00016438,2]
[366071966,1750049453342,-620.58,0.00016438,2]
[366071967,1750049453351,-490.0,0.00016438,2]
[366071968,1750049453360,-490.0,0.00016438,2]
[366071969,1750049453369,-808.49,0.00016438,2]
[366071970,1750049453378,-150.0,0.00016438,2]
[366071971,1750049453388,-490.0,0.00016438,2]
[366071972,1750049453397,-1288.64,0.00016438,2]
[366071973,1750049453406,-979.62,0.00016438,2]
[366071974,1750049453415,-1281.0,0.00016438,2]
[366071975,1750049453425,-1370.19,0.00016438,2]
[366071976,1750049453434,-490.0,0.00016438,2]
[366071977,1750049453443,-2849.02956144,0.00016438,2]
[366071978,1750049453476,-8234.22043856,0.00016438,2]
[366071979,1750049453486,-490.0,0.00016438,2]
[366071980,1750049453498,-490.0,0.00016438,2]
[366071981,1750049453507,-602.26,0.00016438,2]
[366071982,1750049453516,-602.26,0.00016438,2]
[366071983,1750049453525,-2070.66,0.00016438,2]
[366071984,1750049453534,-602.26,0.00016438,2]
[366071985,1750049453543,-602.26,0.00016438,2]
[366071986,1750049453553,-490.0,0.00016438,2]
[366071987,1750049453562,-597.4,0.00016438,2]
[366071988,1750049453571,-2249.81,0.00016438,2]
[366071989,1750049453581,-1110.79,0.00016438,2]
[366071990,1750049453590,-1451.8,0.00016438,2]
[366071991,1750049453599,-490.0,0.00016438,2]
[366071992,1750049453615,-490.0,0.00016438,2]
[366071993,1750049453624,-486.53328804,0.00016438,2]
[366071994,1750049453634,-1001.87,0.00016438,2]
[366071995,1750049453643,-490.0,0.00016438,2]
[366071996,1750049453653,-1061.78,0.00016438,2]
[366071997,1750049453662,-1842.08,0.00016438,2]
[366071998,1750049453672,-490.0,0.00016438,2]
[366071999,1750049453681,-4029.87,0.00016438,2]
[366072000,1750049453691,-1894.03,0.00016438,2]
[366072001,1750049453701,-490.0,0.00016438,2]
[366072002,1750049453712,-490.0,0.00016438,2]
[366072003,1750049453722,-897.1,0.00016438,2]
[366072004,1750049453731,-490.0,0.00016438,2]
[366072005,1750049453741,-490.0,0.00016438,2]
[366072006,1750049453751,-1099.07,0.00016438,2]
[366072007,1750049453761,-179.09137101,0.00016438,2]
[366072008,1750049669072,191.61331116,0.00015,2]
[366072009,1750049708509,329.018517,7.945e-05,2]
[366072010,1750049771750,23900.0,0.00015361,2]
[366072011,1750049783803,-493.63887511,0.00015503,2]
[366072012,1750049786057,-285.84184716,0.00015503,2]
[366072013,1750049789681,-187.54496339,0.00015503,2]
[366072014,1750049792388,-183.61935034,0.00015503,2]
[366072015,1750049792411,-117.02064966,0.00015581,2]
[366072016,1750049794131,-203.0,0.00015581,2]
[366072017,1750049797676,-203.0,0.00015581,2]
[366072018,1750049799871,-198.92,0.00015581,2]
[366072019,1750049803672,-200.39527447,0.00015503,2]
[366072020,1750049806285,7765.01,0.00015356,2]
[366072021,1750049812669,229.39,0.00015356,2]
[366072022,1750049835241,188.43,0.00015358,2]
[366072023,1750049902175,2702.91,0.00015456,2]
[366072024,1750049907376,194.17,0.00013699,2]
[366072026,1750049958099,444.4,0.0001534,2]
[366072027,1750050006609,666.0,0.00015334,2]
[366072029,1750050023294,2544.28289,0.0001549,5]
[366072030,1750050023575,2544.28289,0.0001549,5]
[366072031,1750050023872,2544.28289,0.0001549,5]
[366072032,1750050028518,1000.0,0.00015333,2]
[366072033,1750050044148,167.68482798,0.00015437,2]
[366072034,1750050127538,420.84,0.00015337,2]
[366072036,1750050127597,420.84,0.00015341,2]
[366072037,1750050127800,420.84,0.00015345,2]
[366072038,1750050128012,420.84,0.00015349,2]
[366072039,1750050128195,420.84,0.00015353,2]
[366072040,1750050128387,420.84,0.00015357,2]
[366072041,1750050128784,420.84,0.00015361,2]
[366072042,1750050129006,420.84,0.00015365,2]
[366072043,1750050129189,420.84,0.00015369,2]
[366072044,1750050129387,420.84,0.00015373,2]
[366072045,1750050129596,420.84,0.00015377,2]
[366072046,1750050129798,420.84,0.00015381,2]
[366072047,1750050130023,420.84,0.00015385,2]
[366072048,1750050130383,420.84,0.00015389,2]
[366072049,1750050130634,420.84,0.00015393,2]
[366072050,1750050130820,420.84,0.00015397,2]
[366072051,1750050131007,420.84,0.00015401,2]
[366072052,1750050131220,420.84,0.00015405,2]
[366072053,1750050131413,420.84,0.00015409,2]
[366072054,1750050131686,420.84,0.00015413,2]
[366072055,1750050137825,886.23,0.0001533,2]
[366072056,1750050150188,4538.27,0.00015454,2]
[366072057,1750050166953,2839.1,0.00015331,2]
[366072058,1750050173188,2867.27,0.00015331,2]
[366072059,1750050179999,4334.74,0.00015326,2]
[366072060,1750050198011,1471.56179539,0.00015424,2]
[366072061,1750050228998,2751.0,0.00015326,2]
[366072062,1750050247894,1500.0,0.00015315,2]
[366072063,1750050251830,204.0,0.00015153,2]
[366072064,1750050273095,2029.43,0.0001531,2]
[366072065,1750050284838,9887.85,0.0001531,2]
[366072066,1750050302081,173.95,0.00015307,2]
[366072067,1750050326575,200.0,0.00015293,7]
[366072068,1750050330867,500.0,0.00015293,2]
[366072069,1750050343633,200.0,0.00015291,2]
[366072071,1750050430820,254596.8787767,1.5e-05,5]
[366072081,1750050451170,150.0,0.00015312,2]
[366072082,1750050472981,198.01019158,0.000154,2]
[366072083,1750050488097,2517.55,0.00015291,2]
[366072084,1750050536832,500.0,0.000153,2]
[366072085,1750050579707,250.0,0.00015283,2]
[366072086,1750050595290,776.25,0.00015281,2]
[366072087,1750050611865,204.0,0.00015365,2]
[366072088,1750050626643,200.0,0.00015237,2]
[366072141,1750050633521,-1078.0,0.0001549,10]
[366072145,1750050633557,-2052.55,0.0001549,10]
[366072147,1750050633567,-250.0,0.00015495,2]
[366072149,1750050633578,-150.0,0.000155,2]
[366072151,1750050633588,-460.0,0.000155,10]
[366072153,1750050633597,-1332.0,0.00015542,2]
[366072155,1750050633608,-151.0,0.00015556,2]
[366072157,1750050633619,-151.0,0.00015559,2]
[366072159,1750050633630,-1037.6,0.00015755,2]
[366072161,1750050633640,-500.0,0.000158,5]
[366072163,1750050633651,-170.74,0.00015873,2]
[366072166,1750050633663,-1100.0,0.000159,5]
[366072168,1750050633672,-1200.0,0.00015996,2]
[366072170,1750050633682,-168.0,0.00015997,2]
[366072172,1750050633693,-805.72,0.00016,2]
[366072174,1750050633703,-262.0,0.00016066,2]
[366072176,1750050633712,-419.0,0.00016074,2]
[366072178,1750050633723,-300.0,0.00016083,2]
[366072180,1750050633733,-549.0,0.00016084,2]
[366072182,1750050633743,-1877.0,0.00016086,2]
[366072184,1750050633754,-219.71389372,0.000161,2]
[366072186,1750050633764,-1600.0,0.000161,5]
[366072188,1750050633774,-720.0,0.00016137,2]
[366072190,1750050633784,-7142.856,0.00016139,2]
[366072192,1750050633795,-207.4,0.00016139,2]
[366072194,1750050633805,-188.0,0.00016141,2]
[366072196,1750050633815,-300.0,0.00016147,2]
[366072198,1750050633824,-1440.0,0.00016154,2]
[366072200,1750050633834,-304.75,0.00016158,2]
[366072202,1750050633844,-302.94,0.00016158,2]
[366072204,1750050633854,-304.79,0.00016158,2]
[366072206,1750050633864,-305.48,0.00016158,2]
[366072208,1750050633875,-300.36,0.00016158,2]
[366072210,1750050633890,-301.16,0.00016158,2]
[366072212,1750050633900,-302.52,0.00016158,2]
[366072214,1750050633910,-305.37,0.00016158,2]
[366072216,1750050633920,-1966.0,0.00016164,2]
[366072218,1750050633931,-168.0,0.00016166,2]
[366072220,1750050633941,-7407.141672,0.00016194,2]
[366072222,1750050633951,-724.15352109,0.00016195,2]
[366072224,1750050633962,-168.0,0.00016195,2]
[366072226,1750050633973,-198.01019158,0.000162,2]
[366072228,1750050633983,-151.57529836,0.000162,2]
[366072230,1750050633993,-1007.0,0.000162,2]
[366072233,1750050634004,-2200.0,0.000162,5]
[366072235,1750050634014,-867.0,0.00016202,2]
[366072237,1750050634024,-16869.41868952,0.00016239,2]
[366072263,1750050638270,-16177.89195258,0.00016239,2]
[366072264,1750050638280,-578.89090033,0.00016244,2]
[366072265,1750050638290,-7681.20591386,0.00016249,2]
[366072266,1750050638300,-1078.576343,0.00016249,2]
[366072267,1750050638310,-1242.57684774,0.00016254,2]
[366072268,1750050638319,-150.0,0.00016258,2]
[366072269,1750050638329,-150.0,0.00016258,2]
[366072270,1750050638338,-150.0,0.00016258,2]
[366072271,1750050638348,-150.0,0.00016258,2]
[366072272,1750050638359,-150.0,0.00016258,2]
[366072273,1750050638369,-150.0,0.00016258,2]
[366072274,1750050638378,-150.0,0.00016258,2]
[366072275,1750050638388,-150.0,0.00016258,2]
[366072276,1750050638399,-150.0,0.00016258,2]
[366072277,1750050638409,-293.79030797,0.00016258,2]
[366072278,1750050638419,-150.0,0.00016267,2]
[366072279,1750050638429,-1247.7342,0.00016275,2]
[366072280,1750050638439,-150.0,0.00016281,2]
[366072281,1750050638449,-664.0,0.00016282,2]
[366072282,1750050638458,-151.0,0.0001629,2]
[366072283,1750050638468,-363.20301802,0.00016299,2]
[366072284,1750050638477,-500.0,0.00016299,2]
[366072285,1750050638488,-346.52985358,0.00016299,2]
[366072287,1750050638500,-20300.0,0.000163,2]
[366072289,1750050638510,-2800.0,0.000163,5]
[366072291,1750050638520,-5602.62034856,0.000163,2]
[366072293,1750050638529,-5602.62034827,0.000163,2]
[366072294,1750050638538,-5602.62034827,0.000163,2]
[366072296,1750050638549,-5602.62034827,0.000163,2]
[366072298,1750050638559,-5602.62034827,0.000163,2]
[366072300,1750050638569,-5602.62034827,0.000163,2]
[366072301,1750050638578,-5602.62034827,0.000163,2]
[366072302,1750050638588,-5602.62034827,0.000163,2]
[366072303,1750050638598,-5602.62034827,0.000163,2]
[366072304,1750050638608,-5602.62034827,0.000163,2]
[366072305,1750050638618,-5602.62034827,0.000163,2]
[366072306,1750050638627,-5602.62034827,0.000163,2]
[366072307,1750050638636,-7965.41053268,0.00016304,2]
[366072308,1750050638646,-150.0,0.00016309,2]
[366072309,1750050638656,-150.0,0.0001631,2]
[366072310,1750050638666,-150.0,0.00016312,2]
[366072311,1750050638676,-150.0,0.00016312,2]
[366072312,1750050638685,-1000.0,0.00016313,2]
[366072313,1750050638695,-150.0,0.00016313,2]
[366072314,1750050638704,-5602.62034827,0.00016314,2]
[366072315,1750050638714,-150.0,0.00016314,2]
[366072316,1750050638723,-150.0,0.00016315,2]
[366072317,1750050638733,-150.0,0.00016316,2]
[366072318,1750050638743,-1242.57684771,0.00016318,2]
[366072319,1750050638753,-150.0,0.0001632,2]
[366072320,1750050638763,-1000.0,0.00016321,2]
[366072321,1750050638774,-150.0,0.00016325,2]
[366072322,1750050638783,-150.0,0.00016326,2]
[366072323,1750050638793,-150.0,0.00016327,2]
[366072324,1750050638803,-614.01624509,0.0001633,2]
[366072325,1750050638814,-171.78975076,0.00016338,2]
[366072326,1750050638823,-990.414,0.00016338,2]
[366072327,1750050638832,-150.0,0.00016344,2]
[366072328,1750050638842,-5602.62034827,0.00016348,2]
[366072329,1750050638851,-150.0,0.00016354,2]
[366072330,1750050638861,-1000.0,0.00016355,2]
[366072331,1750050638871,-150.0,0.00016356,2]
[366072333,1750050638883,-150.0,0.00016357,2]
[366072335,1750050638893,-1000.0,0.00016358,2]
[366072337,1750050638902,-8260.13072239,0.00016359,2]
[366072339,1750050638912,-150.0,0.00016366,2]
[366072341,1750050638922,-150.0,0.00016368,2]
[366072343,1750050638932,-150.0,0.00016369,2]
[366072345,1750050638941,-150.0,0.0001637,2]
[366072347,1750050638952,-168.0,0.00016377,2]
[366072349,1750050638962,-150.0,0.00016378,2]
[366072351,1750050638972,-150.0,0.0001638,2]
[366072353,1750050638982,-1242.57684771,0.00016382,2]
[366072355,1750050638991,-5602.62034827,0.00016383,2]
[366072357,1750050639001,-150.0,0.00016383,2]
[366072359,1750050639010,-150.0,0.00016385,2]
[366072361,1750050639019,-614.01624509,0.00016386,2]
[366072363,1750050639029,-38050.74,0.000164,2]
[366072365,1750050639038,-150.0,0.000164,2]
[366072367,1750050639049,-150.0,0.000164,2]
[366072369,1750050639058,-2767.19,0.000164,2]
[366072371,1750050639068,-500.0,0.000164,5]
[366072373,1750050639078,-150.0,0.00016401,2]
[366072375,1750050639087,-200.0,0.00016405,2]
[366072376,1750050639097,-150.0,0.0001641,2]
[366072378,1750050639106,-150.0,0.0001641,2]
[366072380,1750050639117,-8565.75555911,0.00016414,2]
[366072382,1750050639127,-5602.62034827,0.00016417,2]
[366072384,1750050639136,-150.0,0.0001642,2]
[366072386,1750050639145,-150.0,0.00016422,2]
[366072388,1750050639154,-150.0,0.00016426,2]
[366072390,1750050639164,-168.0,0.00016429,2]
[366072392,1750050639174,-191.66275553,0.00016429,2]
[366072394,1750050639183,-608.05512264,0.00016429,2]
[366072396,1750050639192,-222.08669564,0.00016429,2]
[366072397,1750050639202,-103137.5249999,0.0001643,2]
[366072399,1750050639212,-7491.3477035,0.0001643,2]
[366072401,1750050639222,-103152.2119999,0.0001643,2]
[366072404,1750050639231,-150.0,0.00016433,2]
[366072406,1750050639241,-150.0,0.00016434,2]
[366072408,1750050639251,-150.0,0.00016435,2]
[366072409,1750050639260,-833.8156298,0.00016438,2]
[366072411,1750050639270,-151.0,0.00016438,2]
[366072413,1750050639279,-151.0,0.00016438,2]
[366072415,1750050639289,-1159.78202,0.00016438,2]
[366072417,1750050639299,-151.0,0.00016438,2]
[366072419,1750050639309,-491.34637633,0.00016438,2]
[366072421,1750050639318,-151.0,0.00016438,2]
[366072423,1750050639327,-151.0,0.00016438,2]
[366072425,1750050639337,-151.0,0.00016438,2]
[366072427,1750050639346,-151.0,0.00016438,2]
[366072429,1750050639355,-554.322754,0.00016438,2]
[366072431,1750050639364,-554.322754,0.00016438,2]
[366072433,1750050639373,-288.871699,0.00016438,2]
[366072435,1750050639383,-490.97025637,0.00016438,2]
[366072437,1750050639393,-288.871699,0.00016438,2]
[366072439,1750050639402,-490.58415937,0.00016438,2]
[366072441,1750050639412,-350.0,0.00016438,2]
[366072443,1750050639421,-576.98167376,0.00016438,2]
[366072445,1750050639430,-490.0,0.00016438,2]
[366072447,1750050639439,-212.264132,0.00016438,2]
[366072449,1750050639448,-490.0,0.00016438,2]
[366072451,1750050639457,-2859.047734,0.00016438,2]
[366072453,1750050639467,-490.0,0.00016438,2]
[366072455,1750050639477,-151.0,0.00016438,2]
[366072457,1750050639487,-151.0,0.00016438,2]
[366072459,1750050639496,-490.0,0.00016438,2]
[366072461,1750050639505,-200.0,0.00016438,2]
[366072463,1750050639516,-3903.138748,0.00016438,2]
[366072465,1750050639525,-159.941302,0.00016438,2]
[366072467,1750050639535,-490.0,0.00016438,2]
[366072469,1750050639546,-490.0,0.00016438,2]
[366072471,1750050639555,-500.11,0.00016438,2]
[366072472,1750050639565,-843.9,0.00016438,2]
[366072474,1750050639575,-490.0,0.00016438,2]
[366072476,1750050639585,-1053.3,0.00016438,2]
[366072478,1750050639594,-490.0,0.00016438,2]
[366072480,1750050639603,-835.97,0.00016438,2]
[366072482,1750050639614,-490.0,0.00016438,2]
[366072484,1750050639624,-490.0,0.00016438,2]
[366072486,1750050639634,-1458.0,0.00016438,2]
[366072488,1750050639644,-1131.26,0.00016438,2]
[366072490,1750050639654,-746.25,0.00016438,2]
[366072492,1750050639663,-207.78711982,0.00016438,2]
[366072494,1750050639674,-490.0,0.00016438,2]
[366072496,1750050639683,-635.34,0.00016438,2]
[366072498,1750050639693,-490.0,0.00016438,2]
[366072500,1750050639702,-490.0,0.00016438,2]
[366072502,1750050639711,-496.27785393,0.00016438,2]
[366072504,1750050639721,-490.0,0.00016438,2]
[366072506,1750050639731,-490.0,0.00016438,2]
[366072508,1750050639740,-490.0,0.00016438,2]
[366072510,1750050639750,-490.0,0.00016438,2]
[366072512,1750050639759,-569.13,0.00016438,2]
[366072514,1750050639769,-1654.12,0.00016438,2]
[366072516,1750050639778,-490.0,0.00016438,2]
[366072517,1750050639787,-539.82,0.00016438,2]
[366072518,1750050639797,-490.0,0.00016438,2]
[366072519,1750050639806,-490.0,0.00016438,2]
[366072520,1750050639815,-490.0,0.00016438,2]
[366072521,1750050639824,-494.45469456,0.00016438,2]
[366072522,1750050639833,-490.0,0.00016438,2]
[366072523,1750050639842,-501.88,0.00016438,2]
[366072524,1750050639852,-686.6,0.00016438,2]
[366072525,1750050639861,-599.31,0.00016438,2]
[366072526,1750050639870,-490.0,0.00016438,2]
[366072527,1750050639881,-490.0,0.00016438,2]
[366072528,1750050639892,-767.4,0.00016438,2]
[366072529,1750050639902,-490.0,0.00016438,2]
[366072530,1750050639911,-617.37046392,0.00016438,2]
[366072531,1750050639920,-361.69596325,0.00016438,2]
[366072532,1750050639931,-490.0,0.00016438,2]
[366072533,1750050639943,-490.0,0.00016438,2]
[366072534,1750050639952,-494.135658,0.00016438,2]
[366072535,1750050639963,-1955.09,0.00016438,2]
[366072536,1750050639973,-490.0,0.00016438,2]
[366072537,1750050639983,-490.0,0.00016438,2]
[366072538,1750050639993,-490.0,0.00016438,2]
[366072539,1750050640002,-490.0,0.00016438,2]
[366072540,1750050640012,-490.0,0.00016438,2]
[366072541,1750050640023,-490.0,0.00016438,2]
[366072542,1750050640032,-966.75,0.00016438,2]
[366072543,1750050640043,-704.58,0.00016438,2]
[366072544,1750050640053,-491.74741739,0.00016438,2]
[366072545,1750050640063,-497.63430465,0.00016438,2]
[366072546,1750050640073,-241.794227,0.00016438,2]
[366072547,1750050640082,-491.2364745,0.00016438,2]
[366072548,1750050640093,-541.69,0.00016438,2]
[366072549,1750050640103,-241.794227,0.00016438,2]
[366072550,1750050640112,-653.36,0.00016438,2]
[366072551,1750050640122,-502.67955081,0.00016438,2]
[366072552,1750050640131,-490.0,0.00016438,2]
[366072553,1750050640142,-490.0,0.00016438,2]
[366072554,1750050640151,-491.77458165,0.00016438,2]
[366072555,1750050640160,-490.0,0.00016438,2]
[366072556,1750050640170,-490.0,0.00016438,2]
[366072557,1750050640180,-497.30409909,0.00016438,2]
[366072558,1750050640189,-491.61154044,0.00016438,2]
[366072559,1750050640199,-490.0,0.00016438,2]
[366072560,1750050640209,-522.5,0.00016438,2]
[366072561,1750050640218,-491.42602028,0.00016438,2]
[366072562,1750050640228,-543.80454121,0.00016438,2]
[366072563,1750050640238,-595.85,0.00016438,2]
[366072564,1750050640248,-914.3,0.00016438,2]
[366072565,1750050640257,-492.93608638,0.00016438,2]
[366072566,1750050640267,-738.47,0.00016438,2]
[366072567,1750050640276,-151.0,0.00016438,2]
[366072568,1750050640285,-614.25312638,0.00016438,2]
[366072569,1750050640295,-243.533237,0.00016438,2]
[366072570,1750050640305,-889.43,0.00016438,2]
[366072571,1750050640314,-490.0,0.00016438,2]
[366072572,1750050640323,-243.533237,0.00016438,2]
[366072573,1750050640333,-150.0,0.00016438,2]
[366072574,1750050640343,-490.0,0.00016438,2]
[366072575,1750050640352,-490.0,0.00016438,2]
[366072576,1750050640361,-636.34,0.00016438,2]
[366072577,1750050640370,-151.0,0.00016438,2]
[366072578,1750050640381,-490.0,0.00016438,2]
[366072579,1750050640390,-490.0,0.00016438,2]
[366072580,1750050640399,-490.0,0.00016438,2]
[366072581,1750050640409,-490.0,0.00016438,2]
[366072582,1750050640418,-200.0,0.00016438,2]
[366072583,1750050640427,-490.0,0.00016438,2]
[366072584,1750050640436,-617.06,0.00016438,2]
[366072585,1750050640445,-491.07193339,0.00016438,2]
[366072586,1750050640455,-490.0,0.00016438,2]
[366072587,1750050640464,-490.0,0.00016438,2]
[366072588,1750050640474,-490.0,0.00016438,2]
[366072589,1750050640483,-151.0,0.00016438,2]
[366072590,1750050640494,-439.53066861,0.00016438,2]
[366072591,1750050640504,-151.0,0.00016438,2]
[366072592,1750050640513,-490.0,0.00016438,2]
[366072593,1750050640523,-490.0,0.00016438,2]
[366072594,1750050640532,-1419.67,0.00016438,2]
[366072595,1750050640542,-601.37,0.00016438,2]
[366072596,1750050640552,-490.0,0.00016438,2]
[366072597,1750050640561,-1158.76,0.00016438,2]
[366072598,1750050640571,-490.0,0.00016438,2]
[366072599,1750050640580,-490.0,0.00016438,2]
[366072600,1750050640589,-271.99095853,0.00016438,2]
[366072601,1750050640599,-300.0,0.00016438,2]
[366072602,1750050640608,-490.0,0.00016438,2]
[366072603,1750050640618,-490.0,0.00016438,2]
[366072604,1750050640628,-490.0,0.00016438,2]
[366072605,1750050640638,-173.68808729,0.00016438,2]
[366072606,1750050640649,-490.0,0.00016438,2]
[366072607,1750050640658,-490.0,0.00016438,2]
[366072608,1750050640667,-1825.39,0.00016438,2]
[366072609,1750050640677,-648.6,0.00016438,2]
[366072610,1750050640686,-494.84953101,0.00016438,2]
[366072611,1750050640695,-695.71,0.00016438,2]
[366072612,1750050640705,-153.913236,0.00016438,2]
[366072613,1750050640714,-490.0,0.00016438,2]
[366072614,1750050640723,-490.0,0.00016438,2]
[366072615,1750050640733,-789.97,0.00016438,2]
[366072616,1750050640742,-490.0,0.00016438,2]
[366072617,1750050640751,-686.87,0.00016438,2]
[366072618,1750050640760,-957.42,0.00016438,2]
[366072619,1750050640769,-500.4,0.00016438,2]
[366072620,1750050640778,-490.0,0.00016438,2]
[366072621,1750050640788,-501.94,0.00016438,2]
[366072622,1750050640798,-754.6,0.00016438,2]
[366072623,1750050640808,-490.0,0.00016438,2]
[366072624,1750050640818,-151.0,0.00016438,2]
[366072625,1750050640827,-490.0,0.00016438,2]
[366072626,1750050640835,-294.82129811,0.00016438,2]
[366072627,1750050640844,-495.71,0.00016438,2]
[366072628,1750050640853,-1478.94,0.00016438,2]
[366072629,1750050640862,-523.57,0.00016438,2]
[366072630,1750050640871,-641.76,0.00016438,2]
[366072631,1750050640882,-490.0,0.00016438,2]
[366072632,1750050640892,-490.0,0.00016438,2]
[366072633,1750050640901,-490.0,0.00016438,2]
[366072634,1750050640911,-490.0,0.00016438,2]
[366072635,1750050640919,-1218.75,0.00016438,2]
[366072636,1750050640929,-234.411313,0.00016438,2]
[366072637,1750050640938,-549.89,0.00016438,2]
[366072638,1750050640947,-490.0,0.00016438,2]
[366072639,1750050640956,-678.97,0.00016438,2]
[366072640,1750050640967,-1280.96,0.00016438,2]
[366072641,1750050640978,-234.411313,0.00016438,2]
[366072642,1750050640987,-1902.69,0.00016438,2]
[366072643,1750050640996,-860.04,0.00016438,2]
[366072644,1750050641005,-490.0,0.00016438,2]
[366072645,1750050641014,-490.0,0.00016438,2]
[366072646,1750050641023,-491.75287119,0.00016438,2]
[366072647,1750050641032,-614.87,0.00016438,2]
[366072648,1750050641041,-153.099376,0.00016438,2]
[366072649,1750050641052,-297.08,0.00016438,2]
[366072650,1750050641061,-490.0,0.00016438,2]
[366072651,1750050641070,-490.0,0.00016438,2]
[366072652,1750050641079,-490.0,0.00016438,2]
[366072653,1750050641088,-490.0,0.00016438,2]
[366072654,1750050641096,-490.0,0.00016438,2]
[366072655,1750050641105,-1750.53,0.00016438,2]
[366072656,1750050641114,-490.0,0.00016438,2]
[366072657,1750050641123,-769.08,0.00016438,2]
[366072658,1750050641133,-504.83,0.00016438,2]
[366072659,1750050641141,-910.08,0.00016438,2]
[366072660,1750050641150,-490.0,0.00016438,2]
[366072661,1750050641160,-490.0,0.00016438,2]
[366072662,1750050641168,-499.32236933,0.00016438,2]
[366072663,1750050641177,-572.55,0.00016438,2]
[366072664,1750050641187,-490.0,0.00016438,2]
[366072665,1750050641196,-1521.57,0.00016438,2]
[366072666,1750050641205,-490.0,0.00016438,2]
[366072667,1750050641214,-225.721112,0.00016438,2]
[366072668,1750050641223,-490.0,0.00016438,2]
[366072669,1750050641232,-495.79808806,0.00016438,2]
[366072670,1750050641241,-577.87,0.00016438,2]
[366072671,1750050641250,-490.0,0.00016438,2]
[366072672,1750050641259,-588.39,0.00016438,2]
[366072673,1750050641269,-1435.53,0.00016438,2]
[366072674,1750050641278,-225.721112,0.00016438,2]
[366072675,1750050641288,-1115.73,0.00016438,2]
[366072676,1750050641297,-729.4,0.00016438,2]
[366072677,1750050641308,-490.0,0.00016438,2]
[366072678,1750050641316,-490.0,0.00016438,2]
[366072679,1750050641326,-490.0,0.00016438,2]